bitfinex/quotes_SOLUSD_20220117
["timestamp","ask_amount","ask_price","bid_price","bid_amount"]
[1642428785744,37.24059958,143.1,143.0,10.7365]
[1642428787458,24.9983,143.1,143.02,41.29843043]
[1642428787644,24.9983,143.1,143.03,10.4844]
[1642428787845,36.29236517,143.11,143.03,10.4844]
[1642428788045,36.29236517,143.11,143.04,0.25]
[1642428788247,36.29236517,143.11,143.03,10.4844]
[1642428788449,48.53396475,143.11,143.01,10.07]
[1642428788666,23.8937,143.1,143.01,10.07]
[1642428789067,23.8937,143.1,143.01,12.0438418]
[1642428789269,0.25,143.09,143.01,12.0438418]
[1642428789671,0.25,143.09,143.01,22.5294418]
[1642428790069,0.25,143.09,143.01,20.5556]
[1642428792070,0.25,143.09,143.02,41.34450557]
[1642428792276,1.9816162,143.1,143.03,10.4847]
[1642428792470,1.9816162,143.1,143.03,20.5547]
[1642428792669,1.9816162,143.1,143.04,0.25]
[1642428793169,1.9816162,143.11,143.04,0.25]
[1642428793971,1.9816162,143.11,143.05,10.07]
[1642428794673,1.9816162,143.11,143.05,20.5523]
[1642428794873,23.0456,143.12,143.05,10.07]
[1642428795874,0.25,143.11,143.05,10.07]
[1642428796876,2.00619958,143.11,143.01,12.0438418]
[1642428797175,3.98781578,143.11,143.0,1.9738418]
[1642428797775,23.0445,143.1,143.0,1.9738418]
[1642428797975,7.94340382,143.07,142.99,36.5403418]
[1642428798174,7.94340382,143.07,142.99,46.6103418]
[1642428798573,10.4876,143.08,142.99,46.6103418]
[1642428798774,25.0261162,143.1,142.99,46.6103418]
[1642428798973,35.5125162,143.1,143.0,0.25]
[1642428799176,12.4680162,143.1,143.02,10.4853]
[1642428799374,12.4680162,143.1,143.03,10.32]
[1642428799576,1.9816162,143.1,143.04,38.28185648]
[1642428799774,3.96583161,143.13,143.05,80.56]
[1642428800174,3.96583161,143.15,143.05,86.82]
[1642428800375,3.96583161,143.15,143.07,70.24]
[1642428800575,3.96583161,143.15,143.09,10.4797]
[1642428800775,3.96583161,143.15,143.1,44.86556173]
[1642428801178,50.01245524,143.18,143.1,44.86556173]
[1642428801375,0.25,143.17,143.1,44.86556173]
[1642428801576,0.25,143.17,143.1,10.4794]
[1642428801777,47.0344,143.19,143.1,10.4794]
[1642428801977,0.25,143.18,143.1,10.4794]
[1642428802680,33.89744815,143.18,143.1,10.4794]
[1642428804577,44.37774815,143.18,143.1,20.5494]
[1642428805078,33.89744815,143.18,143.1,20.5494]
[1642428805479,0.25,143.18,143.1,20.5494]
[1642428805678,0.25,143.18,143.11,0.25]
[1642428805878,47.0344,143.19,143.13,10.4773]
[1642428806277,3.96583161,143.23,143.13,10.4773]
[1642428806479,55.41010863,143.24,143.14,58.06035358]
[1642428806679,24.7274,143.24,143.14,65.12235358]
[1642428806879,24.7274,143.24,143.15,10.7253]
[1642428807081,24.7274,143.24,143.16,10.07]
[1642428807279,24.7274,143.24,143.17,0.25]
[1642428807682,1.52530578,143.26,143.17,0.25]
[1642428807882,1.52530578,143.26,143.17,27.875]
[1642428808081,23.3641,143.28,143.17,27.875]
[1642428808282,23.3641,143.28,143.17,28.135]
[1642428808683,23.3641,143.28,143.17,27.875]
[1642428808881,23.3641,143.28,143.17,28.135]
[1642428809483,23.3641,143.28,143.17,27.875]
[1642428809682,23.5956,143.3,143.18,70.24]
[1642428809884,23.5956,143.3,143.21,10.4697]
[1642428810083,23.5956,143.3,143.22,10.07]
[1642428810586,23.5956,143.3,143.23,41.56070361]
[1642428810785,0.25,143.29,143.23,41.56070361]
[1642428811483,0.25,143.29,143.22,10.07]
[1642428811684,0.25,143.29,143.23,10.4699]
[1642428812085,51.64636208,143.32,143.23,10.4699]
[1642428812284,0.25,143.31,143.23,10.4699]
[1642428815989,10.7208,143.31,143.23,10.4699]
[1642428816390,10.7208,143.31,143.22,10.07]
[1642428819997,71.99619958,143.3,143.19,10.4724]
[1642428820200,10.4729,143.28,143.19,10.4724]
[1642428821211,0.25,143.27,143.19,10.4724]
[1642428821403,10.7234,143.27,143.19,10.4724]
[1642428821601,10.4734,143.27,143.19,10.4724]
[1642428821802,0.25,143.26,143.19,10.4724]
[1642428824323,0.25,143.26,143.17,20.5438]
[1642428824526,10.7244,143.26,143.17,10.07]
[1642428828628,34.7061,143.28,143.18,38.73830554]
[1642428828828,24.2329,143.28,143.18,109.48830554]
[1642428829027,24.2329,143.28,143.18,119.29830554]
[1642428829430,24.2329,143.28,143.18,49.05830554]
[1642428829938,24.2329,143.28,143.18,48.80830554]
[1642428830129,23.0611,143.31,143.19,0.25]
[1642428830330,33.6037,143.3,143.2,20.5415]
[1642428831436,23.0611,143.31,143.21,0.25]
[1642428831632,3.96583161,143.33,143.24,10.4681]
[1642428831832,3.96583161,143.33,143.25,10.07]
[1642428832332,44.87283429,143.33,143.25,10.07]
[1642428832733,0.25,143.32,143.25,10.07]
[1642428832934,24.5503,143.34,143.25,10.07]
[1642428833133,24.5503,143.34,143.25,26.6943]
[1642428833333,3.96583161,143.35,143.26,70.49]
[1642428833735,3.96583161,143.35,143.27,10.07]
[1642428834535,3.96583161,143.35,143.27,20.5364]
[1642428834737,0.25,143.34,143.27,20.5364]
[1642428835437,0.25,143.35,143.27,20.5364]
[1642428836538,0.25,143.35,143.27,10.07]
[1642428836737,2.00619958,143.35,143.27,10.07]
[1642428837539,12.47389958,143.35,143.27,10.07]
[1642428839143,12.47389958,143.35,143.23,20.5395]
[1642428839342,36.58829958,143.35,143.23,26.5395]
[1642428839744,70.24,143.34,143.23,20.5395]
[1642428839942,10.4709,143.31,143.23,10.07]
[1642428840145,9.1998796,143.3,143.23,10.07]
[1642428840743,10.95607918,143.3,143.23,10.07]
[1642428841171,9.1998796,143.3,143.18,10.07]
[1642428842647,19.6712796,143.3,143.19,10.4723]
[1642428842845,70.24,143.29,143.19,10.4723]
[1642428843847,0.25,143.28,143.19,10.4723]
[1642428844646,10.723,143.28,143.19,10.4723]
[1642428844847,80.963,143.28,143.19,10.4723]
[1642428851989,10.473,143.28,143.19,10.4723]
[1642428852190,23.521,143.31,143.2,0.25]
[1642428852393,23.521,143.31,143.23,10.469]
[1642428852792,23.521,143.31,143.24,0.25]
[1642428853192,36.63385926,143.31,143.24,10.32]
[1642428854092,3.96583161,143.35,143.24,10.32]
[1642428854693,10.4691,143.33,143.24,20.7891]
[1642428855094,50.65185345,143.33,143.24,20.7891]
[1642428859403,10.468,143.35,143.24,20.7891]
[1642428859807,26.85113161,143.36,143.24,20.7891]
[1642428860403,61.02428284,143.36,143.24,20.7891]
[1642428860605,3.96583161,143.36,143.28,10.4652]
[1642428860804,3.96583161,143.36,143.29,0.25]
[1642428861504,54.02235693,143.39,143.29,37.5074801]
[1642428861505,3.96583161,143.37,143.29,37.5074801]
[1642428862108,3.96583161,143.37,143.29,0.25]
[1642428862505,3.96583161,143.37,143.3,10.4648]
[1642428862906,7.92772079,143.38,143.3,10.4648]
[1642428863907,74.20188918,143.38,143.3,10.4648]
[1642428864510,84.66748918,143.38,143.3,10.4648]
[1642428864907,80.7056,143.38,143.3,10.4648]
[1642428865309,80.7056,143.38,143.29,0.25]
[1642428865709,80.7056,143.38,143.28,20.5357]
[1642428866110,80.7056,143.38,143.26,24.3408]
[1642428866311,23.5316,143.37,143.26,24.3408]
[1642428866514,10.4677,143.35,143.26,34.808]
[1642428866712,34.3057,143.35,143.26,34.808]
[1642428866912,8.55629259,143.34,143.22,49.39715082]
[1642428867116,14.85229259,143.34,143.23,10.07]
[1642428867314,14.85229259,143.34,143.22,49.39715082]
[1642428867549,10.4697,143.32,143.22,59.86725082]
[1642428867744,10.4697,143.32,143.22,69.93725082]
[1642428868345,10.4697,143.32,143.23,0.25]
[1642428868648,10.4697,143.32,143.24,10.4688]
[1642428868944,0.25,143.31,143.24,10.4688]
[1642428869345,23.5846,143.33,143.24,10.4688]
[1642428870445,34.0537,143.33,143.24,10.4688]
[1642428871647,23.5846,143.33,143.24,10.4688]
[1642428872249,0.25,143.32,143.24,10.4688]
[1642428872648,0.25,143.32,143.24,20.5388]
[1642428875549,23.5846,143.33,143.24,90.7788]
[1642428875749,23.5846,143.33,143.25,0.25]
[1642428875951,23.5846,143.33,143.26,10.4672]
[1642428876150,23.5846,143.33,143.27,47.99845372]
[1642428876349,3.96583161,143.35,143.27,53.95345372]
[1642428877251,0.25,143.34,143.27,53.95345372]
[1642428877451,38.98032316,143.36,143.27,53.95345372]
[1642428877656,0.25,143.35,143.27,64.42005372]
[1642428878750,0.25,143.36,143.27,64.42005372]
[1642428878950,0.25,143.36,143.28,10.07]
[1642428879351,0.25,143.36,143.3,10.4646]
[1642428879551,0.25,143.36,143.3,19.0146]
[1642428880151,0.25,143.36,143.3,8.55]
[1642428880753,0.25,143.36,143.28,20.5358]
[1642428881753,2.00619958,143.36,143.26,10.4671]
[1642428882564,12.07619958,143.36,143.26,10.4671]
[1642428882755,18.40494863,143.35,143.26,10.4671]
[1642428883160,43.20704821,143.35,143.26,10.4671]
[1642428883657,7.93694863,143.34,143.26,10.4671]
[1642428883857,7.20216521,143.33,143.26,10.4671]
[1642428884459,7.20216521,143.33,143.24,10.4688]
[1642428884657,1.75619958,143.32,143.22,24.3705]
[1642428884857,71.99619958,143.32,143.22,24.3705]
[1642428885061,82.06619958,143.32,143.21,23.5427]
[1642428885258,2.00619958,143.31,143.21,23.5427]
[1642428885660,2.00619958,143.31,143.2,47.52827389]
[1642428885860,10.4723,143.29,143.2,47.52827389]
[1642428886060,34.106076,143.28,143.2,47.52827389]
[1642428886559,34.106076,143.28,143.19,10.4725]
[1642428887566,44.578976,143.28,143.19,10.4725]
[1642428890269,0.25,143.27,143.19,10.4725]
[1642428890467,10.7237,143.27,143.19,10.4725]
[1642428891667,80.9637,143.27,143.17,33.784]
[1642428891868,103.8059,143.27,143.17,23.31]
[1642428892267,103.8059,143.27,143.13,34.4681]
[1642428892481,103.8059,143.27,143.14,0.25]
[1642428892482,33.5659,143.27,143.14,0.25]
[1642428892672,33.5659,143.27,143.14,46.27893364]
[1642428893274,10.4749,143.25,143.15,10.4753]
[1642428894095,0.25,143.24,143.15,10.4753]
[1642428894498,10.7256,143.24,143.15,10.4753]
[1642428894697,10.7256,143.24,143.13,67.7121]
[1642428894698,7.20216521,143.23,143.13,67.7121]
[1642428894898,101.17296521,143.23,143.13,10.4766]
[1642428895098,30.93296521,143.23,143.13,10.4766]
[1642428895700,30.93296521,143.23,143.13,50.27580495]
[1642428896501,10.4771,143.22,143.13,50.27580495]
[1642428896903,10.4771,143.22,143.13,60.34580495]
[1642428897703,39.49541769,143.22,143.13,60.34580495]
[1642428898709,39.49541769,143.22,143.13,20.5466]
[1642428898905,39.49541769,143.22,143.11,10.4783]
[1642428899107,24.9431,143.21,143.08,11.47315065]
[1642428899309,10.4803,143.18,143.08,10.07]
[1642428899511,16.1543,143.18,143.08,10.07]
[1642428899708,12.28992352,143.17,143.07,24.798]
[1642428900109,12.28992352,143.17,143.07,35.2791]
[1642428900310,10.4818,143.16,143.06,24.8552]
[1642428900511,80.7218,143.16,143.03,3.95529351]
[1642428900712,26.66449958,143.15,143.04,10.07]
[1642428901009,32.76549958,143.15,143.05,38.79887268]
[1642428901210,0.25,143.14,143.05,38.79887268]
[1642428902612,10.7335,143.14,143.05,10.4826]
[1642428902812,10.7335,143.14,143.02,34.9553]
[1642428903012,10.7335,143.14,143.02,40.9553]
[1642428903218,70.24,143.13,143.02,40.9553]
[1642428903614,29.01831769,143.12,143.02,78.53352031]
[1642428904014,39.50301769,143.12,143.02,10.07]
[1642428904216,10.07,143.11,142.97,28.30529351]
[1642428904417,34.7845,143.11,142.98,10.07]
[1642428905251,10.4874,143.08,142.98,10.07]
[1642428905447,16.0384,143.08,142.95,34.957]
[1642428905648,16.0384,143.08,142.96,10.07]
[1642428906146,12.28992352,143.07,142.97,42.67623305]
[1642428906548,10.4888,143.06,142.97,53.16473305]
[1642428908249,0.25,143.05,142.97,53.16473305]
[1642428908649,24.9802,143.07,142.97,53.16473305]
[1642428908848,0.25,143.06,142.97,53.16473305]
[1642428909250,32.13195316,143.06,142.97,53.16473305]
[1642428909551,32.13195316,143.06,143.02,42.99604716]
[1642428909749,0.25,143.06,143.02,42.99604716]
[1642428910154,105.2034,143.1,143.02,42.99604716]
[1642428910354,70.24,143.07,143.02,42.99604716]
[1642428910756,101.90894011,143.07,143.02,42.99604716]
[1642428911255,112.39744011,143.07,143.02,42.99604716]
[1642428912254,0.25,143.06,143.02,42.99604716]
[1642428912655,7.201,143.06,143.02,42.99604716]
[1642428913458,6.951,143.06,143.02,42.99604716]
[1642428913657,10.4907,143.05,143.02,42.99604716]
[1642428913859,6.06439994,143.04,143.02,42.99604716]
[1642428914459,6.06439994,143.04,143.02,21.49802358]
[1642428914661,86.79479994,143.04,143.03,21.49802358]
[1642428915159,86.79479994,143.04,143.03,21.14659891]
[1642428915359,86.79479994,143.04,143.03,42.64462249]
[1642428915561,16.55479994,143.04,143.03,42.64462249]
[1642428919064,6.06439994,143.04,143.03,42.64462249]
[1642428919765,6.06439994,143.04,143.03,21.49802358]
[1642428919965,6.06439994,143.04,143.03,42.64462249]
[1642428921268,3.03219997,143.04,143.03,42.64462249]
[1642428921466,10.4892,143.06,143.03,42.64462249]
[1642428921866,10.4892,143.06,143.03,21.14659891]
[1642428922267,10.4892,143.06,143.04,21.49802358]
[1642428923067,10.4892,143.06,143.03,12.86642249]
[1642428923068,63.0,143.05,143.03,12.86642249]
[1642428923267,48.4917,143.04,143.03,12.86642249]
[1642428923468,10.4917,143.04,143.03,12.86642249]
[1642428923768,11.2501521,143.04,143.03,12.86642249]
[1642428924270,13.00635168,143.04,143.03,12.86642249]
[1642428924469,68.00635168,143.04,143.03,12.86642249]
[1642428925068,144.31075162,143.04,142.93,48.104]
[1642428925268,169.03275162,143.04,142.98,12.86642249]
[1642428926073,144.31075162,143.04,142.98,12.86642249]
[1642428926274,89.31075162,143.04,142.98,12.86642249]
[1642428927171,94.38075162,143.04,142.98,12.86642249]
[1642428930377,94.38075162,143.04,142.9,78.3077737]
[1642428930578,10.495,143.0,142.98,12.86642249]
[1642428930778,70.24,142.99,142.98,12.86642249]
[1642428931311,33.12990123,142.99,142.98,12.86642249]
[1642428931506,10.495,143.0,142.98,12.86642249]
[1642428933308,0.25,142.99,142.98,12.86642249]
[1642428934310,3.28219997,142.99,142.98,12.86642249]
[1642428935111,6.31439994,142.99,142.98,12.86642249]
[1642428936115,76.55439994,142.99,142.98,12.86642249]
[1642428936313,6.31439994,142.99,142.98,12.86642249]
[1642428939819,112.07339994,142.99,142.98,4.73745186]
[1642428940018,112.07339994,142.99,142.88,34.3173]
[1642428940019,123.89959952,142.99,142.91,1.9679737]
[1642428940220,10.4968,142.97,142.91,1.9679737]
[1642428940920,43.49593343,142.97,142.91,1.9679737]
[1642428941123,33.3291,142.99,142.88,85.11345295]
[1642428941423,43.8243,142.99,142.89,0.25]
[1642428942027,32.86649936,142.98,142.88,85.11345295]
[1642428942227,32.86649936,142.98,142.89,1.9679737]
[1642428942462,32.86649936,142.98,142.89,2.2179737]
[1642428942623,0.25,142.97,142.9,10.494]
[1642428944631,3.64929811,143.0,142.9,80.734]
[1642428944826,1.94933904,143.04,142.91,10.32]
[1642428945031,1.94933904,143.04,142.94,10.4885]
[1642428945226,1.94933904,143.04,142.99,4.73745186]
[1642428945830,25.35154625,143.05,142.99,4.73745186]
[1642428950266,25.35154625,143.05,142.96,10.4895]
[1642428950465,25.35154625,143.05,142.97,0.25]
[1642428950663,35.84174625,143.05,143.0,4.73745186]
[1642428952163,25.35154625,143.05,143.0,4.73745186]
[1642428952365,80.7291,143.07,143.0,4.73745186]
[1642428953263,82.48529958,143.07,143.0,4.73745186]
[1642428954267,10.4909,143.05,143.0,4.73745186]
[1642428954570,80.7309,143.05,143.0,4.73745186]
[1642428954772,90.46109958,143.05,143.0,4.73745186]
[1642428955566,90.46109958,143.05,142.95,25.6461737]
[1642428955766,10.07,143.04,142.95,25.6461737]
[1642428955967,8.49308838,143.03,143.0,4.73745186]
[1642428956267,6.06439994,143.02,143.0,4.73745186]
[1642428956968,12.62439994,143.02,143.0,4.73745186]
[1642428957366,0.25,143.01,143.0,4.73745186]
[1642428957768,10.32,143.01,143.0,4.73745186]
[1642428958171,67.32,143.01,143.0,4.73745186]
[1642428958571,69.07619958,143.01,143.0,4.73745186]
[1642428959272,139.31619958,143.01,143.0,4.73745186]
[1642428962772,174.30239958,143.01,143.0,0.00745186]
[1642428962976,174.30239958,143.01,142.91,26.6056737]
[1642428963673,24.68618219,143.0,142.91,26.6056737]
[1642428963876,8.49308838,142.97,142.91,24.6377]
[1642428964075,10.07,142.96,142.89,25.0763737]
[1642428964874,80.31,142.96,142.88,1.9679737]
[1642428965375,0.25,142.95,142.88,1.9679737]
[1642428966976,0.25,142.95,142.87,44.00873003]
[1642428967779,0.25,142.95,142.88,0.25]
[1642428968080,0.25,142.95,142.87,54.50513003]
[1642428968882,0.25,142.95,142.87,44.00873003]
[1642428971681,0.25,142.95,142.87,1.9679737]
[1642428972583,0.25,142.95,142.87,43.48555291]
[1642428979793,0.25,142.95,142.87,53.98185291]
[1642428979996,10.4949,143.0,142.88,0.25]
[1642428980294,1.94933904,143.03,142.88,34.4911]
[1642428980492,1.94933904,143.03,142.88,35.9038223]
[1642428980692,1.94933904,143.03,142.89,70.24]
[1642428980898,1.94933904,143.03,142.9,71.41035706]
[1642428981093,1.94933904,143.03,142.9,72.82307936]
[1642428981295,1.94933904,143.03,142.91,70.24]
[1642428981497,1.94933904,143.03,142.94,10.4889]
[1642428981696,1.94933904,143.03,142.95,44.52815351]
[1642428981995,10.07,143.07,142.95,44.77815351]
[1642428982595,1.94933904,143.08,142.97,10.4889]
[1642428982795,1.4745433,143.08,142.98,10.32]
[1642428983096,1.25040404,143.1,142.99,105.0568831]
[1642428983297,1.25040404,143.1,143.0,0.25]
[1642428983901,0.25,143.09,143.0,0.25]
[1642428984301,6.75296649,143.09,143.01,10.485]
[1642428984703,6.75296649,143.09,143.02,0.25]
[1642428984904,6.75296649,143.09,142.99,44.8868831]
[1642428985101,6.75296649,143.09,142.99,10.07]
[1642428986103,0.25,143.09,142.99,20.5572]
[1642428986302,1.25040404,143.1,143.0,0.25]
[1642428986505,1.25040404,143.1,143.0,10.32]
[1642428986705,1.25040404,143.1,143.0,10.07]
[1642428986908,1.25040404,143.1,143.01,0.25]
[1642428987103,1.25040404,143.1,143.01,45.91746998]
[1642428987705,0.25,143.09,143.01,45.91746998]
[1642428988504,0.25,143.09,143.02,10.485]
[1642428988704,35.0666,143.14,143.02,10.485]
[1642428988905,0.25,143.13,143.03,0.25]
[1642428989905,10.07,143.16,143.04,10.4835]
[1642428990106,10.07,143.16,143.04,33.8352]
[1642428990406,10.07,143.19,143.05,0.25]
[1642428990606,3.96583161,143.2,143.06,10.07]
[1642428990808,3.96583161,143.2,143.07,70.49]
[1642428991004,3.96583161,143.2,143.08,42.69389739]
[1642428991235,3.96583161,143.2,143.08,63.24449739]
[1642428991507,3.96583161,143.2,143.09,0.25]
[1642428991712,15.96572963,143.25,143.1,10.07]
[1642428991909,15.96572963,143.25,143.1,15.548]
[1642428992110,43.58897455,143.25,143.11,42.91719686]
[1642428992510,15.96572963,143.25,143.12,10.4765]
[1642428992912,11.99989802,143.25,143.13,0.25]
[1642428993110,11.99989802,143.25,143.13,6.508]
[1642428993311,0.25,143.24,143.13,6.508]
[1642428993512,0.25,143.24,143.14,38.01743704]
[1642428993914,11.99989802,143.25,143.15,0.25]
[1642428994616,11.99989802,143.25,143.15,10.7259]
[1642428995416,0.25,143.24,143.15,10.7259]
[1642428995815,0.25,143.24,143.15,0.25]
[1642428996018,10.727,143.24,143.15,0.25]
[1642428996215,2.62221357,143.23,143.15,0.25]
[1642428996414,0.25,143.24,143.15,0.25]
[1642428997214,0.25,143.24,143.15,10.7256]
[1642428997816,10.07,143.29,143.15,10.9856]
[1642428998015,10.07,143.29,143.15,21.0556]
[1642428998418,24.217025,143.28,143.15,21.0556]
[1642428998746,34.691425,143.28,143.15,20.7956]
[1642428999118,34.691425,143.28,143.15,21.0556]
[1642428999519,34.691425,143.28,143.15,20.7956]
[1642428999717,34.691425,143.28,143.15,21.0556]
[1642429001319,0.25,143.27,143.15,21.0556]
[1642429002622,10.7249,143.27,143.15,20.5456]
[1642429002823,12.48109958,143.27,143.1,45.7648]
[1642429003023,57.7447,143.26,143.12,10.07]
[1642429003423,1.75619958,143.25,143.12,10.07]
[1642429003622,8.96224557,143.24,143.13,35.07986223]
[1642429003822,10.4791,143.22,143.13,35.07986223]
[1642429004524,24.11274748,143.21,143.13,35.07986223]
[1642429005223,24.11274748,143.21,143.12,10.478]
[1642429008355,34.59174748,143.21,143.12,10.478]
[1642429009158,0.25,143.2,143.12,10.478]
[1642429009359,0.25,143.2,143.1,66.3139]
[1642429009563,0.25,143.2,143.1,43.5361]
[1642429009759,10.7298,143.2,143.1,10.4791]
[1642429009960,70.24,143.19,143.06,10.07]
[1642429010159,70.24,143.19,143.06,33.4264]
[1642429010360,9.06652309,143.18,143.07,0.25]
[1642429010562,105.51752267,143.18,143.07,0.25]
[1642429010762,112.54152267,143.18,143.07,0.25]
[1642429010960,70.24,143.16,143.04,20.5534]
[1642429011770,24.11274748,143.15,143.05,36.95406635]
[1642429011962,34.59614748,143.15,143.05,47.43706635]
[1642429013162,0.25,143.14,143.05,47.43706635]
[1642429015165,0.25,143.14,143.05,10.483]
[1642429015366,10.7341,143.14,143.03,33.6905]
[1642429015566,80.9741,143.14,143.03,33.6905]
[1642429015965,80.9741,143.14,143.03,23.2064]
[1642429016166,80.9741,143.14,143.03,67.64513913]
[1642429016567,80.9741,143.14,143.04,0.25]
[1642429016766,80.9741,143.14,143.03,67.64513913]
[1642429017169,10.7341,143.14,143.03,67.64513913]
[1642429017368,0.25,143.14,143.06,10.4823]
[1642429017570,0.25,143.14,143.07,36.37320545]
[1642429017769,0.25,143.14,143.07,36.62320545]
[1642429017973,0.25,143.14,143.07,36.37320545]
[1642429018170,0.25,143.14,143.06,10.4823]
[1642429019172,0.25,143.14,143.06,51.65191328]
[1642429023175,10.482,143.17,143.07,0.25]
[1642429023377,10.482,143.17,143.07,10.7316]
[1642429024380,24.4548,143.18,143.07,10.7316]
[1642429026707,0.25,143.17,143.07,10.7316]
[1642429028313,0.25,143.17,143.07,10.4816]
[1642429029715,0.25,143.17,143.08,0.25]
[1642429029917,0.25,143.17,143.09,10.4801]
[1642429030118,0.25,143.17,143.09,49.48987208]
[1642429030322,0.25,143.17,143.1,0.25]
[1642429031118,0.25,143.17,143.1,10.7295]
[1642429031318,3.96583161,143.22,143.1,10.9895]
[1642429031517,3.96583161,143.22,143.11,70.24]
[1642429031920,3.96583161,143.22,143.12,0.25]
[1642429032119,3.96583161,143.22,143.12,42.69553725]
[1642429032322,3.96583161,143.22,143.14,10.4755]
[1642429032723,3.96583161,143.22,143.15,0.25]
[1642429032921,3.96583161,143.22,143.15,10.32]
[1642429033322,3.96583161,143.27,143.16,37.42192075]
[1642429033721,3.96583161,143.27,143.17,10.7233]
[1642429033921,3.96583161,143.27,143.17,20.7933]
[1642429034121,3.96583161,143.27,143.17,80.82]
[1642429034521,30.57430169,143.27,143.17,10.32]
[1642429034724,26.60847008,143.27,143.18,10.4732]
[1642429035124,0.25,143.26,143.19,38.29571242]
[1642429035324,0.25,143.26,143.19,0.25]
[1642429036249,0.25,143.26,143.18,45.81868553]
[1642429036625,0.25,143.26,143.19,10.4727]
[1642429036826,0.25,143.26,143.2,0.25]
[1642429037726,24.8429,143.28,143.2,0.25]
[1642429037930,24.8429,143.28,143.2,10.7222]
[1642429038126,24.8429,143.28,143.2,10.4722]
[1642429038531,24.8429,143.28,143.21,37.5560179]
[1642429038730,0.25,143.27,143.21,37.5560179]
[1642429039330,24.8429,143.28,143.21,48.0274179]
[1642429039532,24.8429,143.28,143.22,0.25]
[1642429039730,1.23348719,143.31,143.22,0.25]
[1642429040336,1.23348719,143.31,143.23,10.47]
[1642429040537,27.21533161,143.32,143.23,17.07]
[1642429040733,23.2495,143.32,143.24,0.25]
[1642429041333,23.2495,143.32,143.24,41.62844721]
[1642429041633,23.2495,143.32,143.25,10.4683]
[1642429042634,23.2495,143.32,143.21,67.4668]
[1642429043035,25.00569958,143.32,143.23,10.4696]
[1642429043637,23.2495,143.32,143.23,53.14184908]
[1642429044236,23.2495,143.32,143.24,0.25]
[1642429044435,23.2495,143.32,143.24,10.719]
[1642429045640,23.5672,143.33,143.24,10.719]
[1642429045838,10.07,143.36,143.24,18.626]
[1642429046640,34.2778,143.36,143.24,18.626]
[1642429046939,24.2078,143.36,143.24,18.886]
[1642429047440,24.2078,143.36,143.28,10.4656]
[1642429047840,24.2078,143.36,143.29,38.37287431]
[1642429048942,86.36025717,143.39,143.29,38.37287431]
[1642429049142,62.25375717,143.39,143.29,38.37287431]
[1642429049542,62.25375717,143.39,143.29,48.83827431]
[1642429051571,62.25375717,143.39,143.29,10.7154]
[1642429052369,62.25375717,143.39,143.29,10.4654]
[1642429053372,0.25,143.38,143.29,10.4654]
[1642429054072,10.7166,143.38,143.28,24.0094]
[1642429054271,12.47279958,143.38,143.28,24.0094]
[1642429054972,12.47279958,143.38,143.25,20.5383]
[1642429055272,23.8412,143.37,143.25,10.4683]
[1642429055473,10.469,143.35,143.25,10.4683]
[1642429055772,35.3086,143.35,143.25,10.4683]
[1642429056372,1.75619958,143.34,143.24,24.9633]
[1642429056572,10.4701,143.33,143.24,24.9633]
[1642429057474,25.1072442,143.32,143.24,24.9633]
[1642429057675,10.4713,143.31,143.21,52.62028025]
[1642429058074,10.4713,143.31,143.22,0.25]
[1642429058476,33.5154,143.31,143.22,0.25]
[1642429058676,33.5154,143.31,143.22,10.7207]
[1642429059274,0.25,143.3,143.22,10.7207]
[1642429066781,0.25,143.3,143.2,34.1458]
[1642429066981,10.7223,143.3,143.2,34.1458]
[1642429067684,8.07202637,143.29,143.2,81.75414883]
[1642429067983,27.00993161,143.31,143.2,81.75414883]
[1642429069184,0.25,143.3,143.22,10.4704]